[Event "Titled Tuesday Blitz March 15 Late 2022"]
[White "Weber, Samuel"]
[Black "Papasimakopoulos, Alexandros"]
[WhiteFideId "12924008"]
[BlackFideId "4244125"]
[WhiteElo "2215"]
[BlackElo "2340"]
[Result "0-1"]
[Round "01"]
[TimeControl "180+1"]
[Date "2022.03.16"]
[WhiteClock "0:00:02"]
[BlackClock "0:00:11"]

1. e4 {[%clk 0:02:53]}  e6 {[%clk 0:02:43]} 2. d3 {[%clk 0:02:49]}  d5 {[%clk 0:02:40]} 3. Nd2 {[%clk 0:02:50]}  c5 {[%clk 0:02:35]} 4. Ngf3 {[%clk 0:02:50]}  Nc6 {[%clk 0:02:35]} 5. g3 {[%clk 0:02:49]}  g6 {[%clk 0:02:34]} 6. Bg2 {[%clk 0:02:48]}  Bg7 {[%clk 0:02:34]} 7. O-O {[%clk 0:02:48]}  Nge7 {[%clk 0:02:33]} 8. Re1 {[%clk 0:02:48]}  h6 {[%clk 0:02:29]} 9. c3 {[%clk 0:02:48]}  a5 {[%clk 0:02:27]} 10. a4 {[%clk 0:02:48]}  b6 {[%clk 0:02:27]} 11. exd5 {[%clk 0:02:39]}  exd5 {[%clk 0:02:25]} 12. Nb3 {[%clk 0:02:38]}  O-O {[%clk 0:02:24]} 13. d4 {[%clk 0:02:39]}  c4 {[%clk 0:02:22]} 14. Nbd2 {[%clk 0:02:39]}  Bf5 {[%clk 0:02:22]} 15. b3 {[%clk 0:02:38]}  cxb3 {[%clk 0:02:18]} 16. Qxb3 {[%clk 0:02:38]}  Rb8 {[%clk 0:02:09]} 17. Ba3 {[%clk 0:02:26]}  Re8 {[%clk 0:02:02]} 18. Bf1 {[%clk 0:02:12]}  Qc7 {[%clk 0:01:35]} 19. Bb5 {[%clk 0:02:09]}  Be6 {[%clk 0:01:32]} 20. Nf1 {[%clk 0:02:00]}  Nf5 {[%clk 0:01:30]} 21. Ne3 {[%clk 0:01:42]}  Nxe3 {[%clk 0:01:28]} 22. Rxe3 {[%clk 0:01:42]}  Rec8 {[%clk 0:01:28]} 23. Rae1 {[%clk 0:01:38]}  Na7 {[%clk 0:01:26]} 24. Ba6 {[%clk 0:01:37]}  Rd8 {[%clk 0:01:22]} 25. Bd3 {[%clk 0:01:33]}  Nc6 {[%clk 0:01:21]} 26. Bxg6 {[%clk 0:01:32]}  fxg6 {[%clk 0:01:15]} 27. Rxe6 {[%clk 0:01:32]}  Kh7 {[%clk 0:01:16]} 28. Qc2 {[%clk 0:01:30]}  Qf7 {[%clk 0:01:09]} 29. Nh4 {[%clk 0:01:29]}  Rbc8 {[%clk 0:01:04]} 30. Nxg6 {[%clk 0:01:28]}  Nxd4 {[%clk 0:01:02]} 31. Qb1 {[%clk 0:01:20]}  Nf3+ {[%clk 0:00:39]} 32. Kh1 {[%clk 0:01:20]}  Kg8 {[%clk 0:00:34]} 33. R1e3 {[%clk 0:00:24]}  Ng5 {[%clk 0:00:27]} 34. Re7 {[%clk 0:00:18]}  Qf6 {[%clk 0:00:24]} 35. R7e5 {[%clk 0:00:14]}  Ne4 {[%clk 0:00:21]} 36. Ne7+ {[%clk 0:00:12]}  Kh8 {[%clk 0:00:21]} 37. R5xe4 {[%clk 0:00:11]}  dxe4 {[%clk 0:00:20]} 38. Nxc8 {[%clk 0:00:12]}  Rxc8 {[%clk 0:00:20]} 39. Qxe4 {[%clk 0:00:12]}  Qxf2 {[%clk 0:00:20]} 40. Qf3 {[%clk 0:00:10]}  Qa2 {[%clk 0:00:18]} 41. Bd6 {[%clk 0:00:09]}  Qxa4 {[%clk 0:00:17]} 42. Be5 {[%clk 0:00:08]}  Qc6 {[%clk 0:00:16]} 43. Qxc6 {[%clk 0:00:08]}  Rxc6 {[%clk 0:00:16]} 44. Bxg7+ {[%clk 0:00:06]}  Kxg7 {[%clk 0:00:17]} 45. Kg2 {[%clk 0:00:06]}  Kf6 {[%clk 0:00:17]} 46. Kf3 {[%clk 0:00:06]}  b5 {[%clk 0:00:17]} 47. Rd3 {[%clk 0:00:06]}  a4 {[%clk 0:00:17]} 48. Ke4 {[%clk 0:00:05]}  Rc8 {[%clk 0:00:14]} 49. Rd6+ {[%clk 0:00:04]}  Kg5 {[%clk 0:00:14]} 50. Ra6 {[%clk 0:00:05]}  Rxc3 {[%clk 0:00:12]} 51. Ra5 {[%clk 0:00:02]}  Rb3 {[%clk 0:00:12]} 52. h4+ {[%clk 0:00:02]}  Kg4 {[%clk 0:00:13]} 53. h5 {[%clk 0:00:02]}  Kxh5 {[%clk 0:00:12]} 54. Kf5 {[%clk 0:00:02]}  Rf3+ {[%clk 0:00:11]} 55. Ke4 {[%clk 0:00:02]}  Rxg3 {[%clk 0:00:11]} 56. Rxb5+ {[%clk 0:00:02]}  Rg5 {[%clk 0:00:12]} 57. Rb4 {[%clk 0:00:02]}  Rg4+ {[%clk 0:00:11]} 0-1


[Site "https://www.chess.com"]

[Event "Titled Tuesday Blitz March 15 Late 2022"]
[White "Yang, Kaiqi"]
[Black "Sarana, Alexey"]
[WhiteFideId "8604398"]
[BlackFideId "24133795"]
[WhiteElo "2373"]
[BlackElo "2666"]
[Result "0-1"]
[Round "01"]
[TimeControl "180+1"]
[Date "2022.03.15"]
[WhiteClock "0:00:02"]
[BlackClock "0:01:45"]

1. e4 {[%clk 0:02:43]}  c5 {[%clk 0:02:57]} 2. Nc3 {[%clk 0:02:40]}  d6 {[%clk 0:02:57]} 3. d4 {[%clk 0:02:39]}  cxd4 {[%clk 0:02:58]} 4. Qxd4 {[%clk 0:02:39]}  Nc6 {[%clk 0:02:57]} 5. Qd2 {[%clk 0:02:39]}  g6 {[%clk 0:02:57]} 6. b3 {[%clk 0:02:40]}  Bh6 {[%clk 0:02:58]} 7. f4 {[%clk 0:02:39]}  f5 {[%clk 0:02:58]} 8. Bb2 {[%clk 0:02:36]}  Nf6 {[%clk 0:02:58]} 9. Bd3 {[%clk 0:02:33]}  Qa5 {[%clk 0:02:57]} 10. exf5 {[%clk 0:02:28]}  Bxf5 {[%clk 0:02:58]} 11. Nge2 {[%clk 0:02:20]}  O-O-O {[%clk 0:02:57]} 12. O-O-O {[%clk 0:02:12]}  e5 {[%clk 0:02:53]} 13. Bxf5+ {[%clk 0:02:11]}  gxf5 {[%clk 0:02:52]} 14. Kb1 {[%clk 0:02:04]}  Rhe8 {[%clk 0:02:48]} 15. Rhf1 {[%clk 0:01:59]}  e4 {[%clk 0:02:42]} 16. Nd5 {[%clk 0:01:47]}  Qxd2 {[%clk 0:02:39]} 17. Rxd2 {[%clk 0:01:47]}  Nxd5 {[%clk 0:02:37]} 18. Rxd5 {[%clk 0:01:47]}  Ne7 {[%clk 0:02:37]} 19. Rdd1 {[%clk 0:01:45]}  d5 {[%clk 0:02:37]} 20. Bf6 {[%clk 0:01:26]}  Rd6 {[%clk 0:02:27]} 21. Be5 {[%clk 0:01:26]}  Rd7 {[%clk 0:02:17]} 22. Nd4 {[%clk 0:01:24]}  Rg8 {[%clk 0:02:17]} 23. g3 {[%clk 0:01:22]}  Bg7 {[%clk 0:02:17]} 24. Ne6 {[%clk 0:01:05]}  Bh8 {[%clk 0:02:07]} 25. Rd2 {[%clk 0:00:43]}  Bxe5 {[%clk 0:01:56]} 26. fxe5 {[%clk 0:00:44]}  Nc6 {[%clk 0:01:57]} 27. Rxf5 {[%clk 0:00:43]}  Re8 {[%clk 0:01:56]} 28. Nc5 {[%clk 0:00:31]}  e3 {[%clk 0:01:55]} 29. Rd3 {[%clk 0:00:24]}  d4 {[%clk 0:01:50]} 30. Nxd7 {[%clk 0:00:22]}  e2 {[%clk 0:01:49]} 31. Rf7 {[%clk 0:00:08]}  e1=Q+ {[%clk 0:01:49]} 32. Kb2 {[%clk 0:00:09]}  Nxe5 {[%clk 0:01:46]} 33. Nxe5 {[%clk 0:00:07]}  Qxe5 {[%clk 0:01:45]} 34. Rxh7 {[%clk 0:00:08]}  Kb8 {[%clk 0:01:45]} 35. h4 {[%clk 0:00:07]}  Rc8 {[%clk 0:01:45]} 36. Rf7 {[%clk 0:00:03]}  Qe2 {[%clk 0:01:45]} 37. Rxd4 {[%clk 0:00:02]}  Rxc2+ {[%clk 0:01:45]} 38. Ka3 {[%clk 0:00:01]}  Rxa2+ {[%clk 0:01:45]} 39. Kb4 {[%clk 0:00:02]}  a5+ {[%clk 0:01:46]} 40. Kc5 {[%clk 0:00:02]}  Qe5+ {[%clk 0:01:47]} 41. Rd5 {[%clk 0:00:02]}  Rc2+ {[%clk 0:01:46]} 42. Kb6 {[%clk 0:00:02]}  Qe6+ {[%clk 0:01:45]} 0-1


[Site "https://www.chess.com"]

[Event "Titled Tuesday Blitz March 15 Late 2022"]
[White "Yoo, Christopher Woojin"]
[Black "Plazuelo Pascual, Juan"]
[WhiteFideId "30909694"]
[BlackFideId "32059566"]
[WhiteElo "2105"]
[BlackElo "2364"]
[Result "1-0"]
[Round "01"]
[TimeControl "180+1"]
[Date "2022.03.15"]
[WhiteClock "0:00:03"]
[BlackClock "0:00:04"]

1. e4 {[%clk 0:03:00]}  e5 {[%clk 0:02:59]} 2. Nf3 {[%clk 0:02:59]}  Nc6 {[%clk 0:02:59]} 3. Bc4 {[%clk 0:02:59]}  Bc5 {[%clk 0:02:58]} 4. c3 {[%clk 0:02:57]}  Nf6 {[%clk 0:02:58]} 5. d4 {[%clk 0:02:58]}  exd4 {[%clk 0:02:58]} 6. b4 {[%clk 0:02:58]}  Be7 {[%clk 0:02:45]} 7. e5 {[%clk 0:02:56]}  Ne4 {[%clk 0:02:45]} 8. b5 {[%clk 0:02:55]}  Na5 {[%clk 0:02:35]} 9. Bd3 {[%clk 0:02:55]}  Nxc3 {[%clk 0:02:34]} 10. Nxc3 {[%clk 0:02:54]}  dxc3 {[%clk 0:02:35]} 11. Qa4 {[%clk 0:02:54]}  c6 {[%clk 0:02:30]} 12. O-O {[%clk 0:02:44]}  O-O {[%clk 0:02:27]} 13. Rd1 {[%clk 0:02:03]}  b6 {[%clk 0:02:24]} 14. Bh6 {[%clk 0:01:41]}  Re8 {[%clk 0:01:31]} 15. Bxg7 {[%clk 0:01:17]}  Kxg7 {[%clk 0:01:11]} 16. Qg4+ {[%clk 0:01:16]}  Kf8 {[%clk 0:01:11]} 17. Bxh7 {[%clk 0:01:15]}  Bc5 {[%clk 0:00:55]} 18. Qg8+ {[%clk 0:00:51]}  Ke7 {[%clk 0:00:55]} 19. Qg5+ {[%clk 0:00:50]}  Kf8 {[%clk 0:00:55]} 20. Qh6+ {[%clk 0:00:49]}  Ke7 {[%clk 0:00:56]} 21. Nh4 {[%clk 0:00:28]}  d5 {[%clk 0:00:50]} 22. exd6+ {[%clk 0:00:25]}  Bxd6 {[%clk 0:00:42]} 23. Bf5 {[%clk 0:00:18]}  Qc7 {[%clk 0:00:11]} 24. Qg5+ {[%clk 0:00:07]}  Kf8 {[%clk 0:00:10]} 25. Qh6+ {[%clk 0:00:05]}  Ke7 {[%clk 0:00:11]} 26. Re1+ {[%clk 0:00:05]}  Be5 {[%clk 0:00:11]} 27. Ng6+ {[%clk 0:00:02]}  fxg6 {[%clk 0:00:11]} 28. Qg7+ {[%clk 0:00:03]}  Kd6 {[%clk 0:00:11]} 29. Rad1+ {[%clk 0:00:01]}  Kc5 {[%clk 0:00:07]} 30. Qxg6 {[%clk 0:00:02]}  Bxh2+ {[%clk 0:00:07]} 31. Kh1 {[%clk 0:00:02]}  Rxe1+ {[%clk 0:00:08]} 32. Rxe1 {[%clk 0:00:02]}  Bxf5 {[%clk 0:00:05]} 33. Qxf5+ {[%clk 0:00:02]}  Kb4 {[%clk 0:00:06]} 34. Rb1+ {[%clk 0:00:02]}  Ka4 {[%clk 0:00:02]} 35. Qc2+ {[%clk 0:00:01]}  Ka3 {[%clk 0:00:02]} 36. Rb3+ {[%clk 0:00:02]}  Ka4 {[%clk 0:00:03]} 37. Rb2+ {[%clk 0:00:02]}  Ka3 {[%clk 0:00:03]} 38. Qxc3+ {[%clk 0:00:03]}  Ka4 {[%clk 0:00:04]} 39. Qb4# {[%clk 0:00:03]} 1-0


[Site "https://www.chess.com"]

[Event "Titled Tuesday Blitz March 15 Late 2022"]
[White "Zhou, Qiyu"]
[Black "Barp, Alberto"]
[WhiteFideId "505161"]
[BlackFideId "872555"]
[WhiteElo "1925"]
[BlackElo "2229"]
[Result "0-1"]
[Round "01"]
[TimeControl "180+1"]
[Date "2022.03.16"]
[WhiteClock "0:00:10"]
[BlackClock "0:00:17"]

1. d4 {[%clk 0:02:56]}  Nf6 {[%clk 0:02:59]} 2. Nf3 {[%clk 0:02:53]}  d5 {[%clk 0:02:58]} 3. e3 {[%clk 0:02:51]}  c5 {[%clk 0:02:54]} 4. b3 {[%clk 0:02:50]}  cxd4 {[%clk 0:02:48]} 5. exd4 {[%clk 0:02:48]}  g6 {[%clk 0:02:49]} 6. Bd3 {[%clk 0:02:48]}  Bg7 {[%clk 0:02:48]} 7. O-O {[%clk 0:02:47]}  O-O {[%clk 0:02:47]} 8. Re1 {[%clk 0:02:46]}  Nc6 {[%clk 0:02:42]} 9. Bb2 {[%clk 0:02:45]}  Nh5 {[%clk 0:02:27]} 10. Nbd2 {[%clk 0:02:39]}  Nb4 {[%clk 0:02:23]} 11. Bf1 {[%clk 0:02:37]}  Bf5 {[%clk 0:02:18]} 12. Ba3 {[%clk 0:02:12]}  a5 {[%clk 0:01:34]} 13. Bxb4 {[%clk 0:01:59]}  axb4 {[%clk 0:01:33]} 14. Nh4 {[%clk 0:01:45]}  Be6 {[%clk 0:01:24]} 15. Ndf3 {[%clk 0:01:35]}  Bf6 {[%clk 0:01:13]} 16. g3 {[%clk 0:01:29]}  Qc7 {[%clk 0:01:02]} 17. Qd2 {[%clk 0:01:26]}  Qd6 {[%clk 0:00:53]} 18. Ng2 {[%clk 0:01:15]}  Rfc8 {[%clk 0:00:47]} 19. Ne5 {[%clk 0:01:03]}  Rc3 {[%clk 0:00:34]} 20. Bd3 {[%clk 0:00:59]}  Rac8 {[%clk 0:00:31]} 21. f4 {[%clk 0:00:32]}  Ng7 {[%clk 0:00:29]} 22. Ne3 {[%clk 0:00:31]}  Qb6 {[%clk 0:00:26]} 23. Bf1 {[%clk 0:00:20]}  Nf5 {[%clk 0:00:23]} 24. N3g4 {[%clk 0:00:15]}  Nxd4 {[%clk 0:00:20]} 25. Kh1 {[%clk 0:00:12]}  Bg7 {[%clk 0:00:18]} 26. Rac1 {[%clk 0:00:11]}  Bxg4 {[%clk 0:00:18]} 27. Nxg4 {[%clk 0:00:11]}  Nf3 {[%clk 0:00:18]} 28. Qxd5 {[%clk 0:00:11]}  Nxe1 {[%clk 0:00:18]} 29. Rxe1 {[%clk 0:00:11]}  e6 {[%clk 0:00:18]} 30. Qd7 {[%clk 0:00:11]}  Qc6+ {[%clk 0:00:18]} 31. Qxc6 {[%clk 0:00:11]}  R3xc6 {[%clk 0:00:17]} 32. Bd3 {[%clk 0:00:10]}  Ra8 {[%clk 0:00:17]} 0-1


[Site "https://www.chess.com"]

[Event "Titled Tuesday Blitz March 15 Late 2022"]
[White "Abdrlauf, Elham"]
[Black "Suder, Jakub"]
[WhiteFideId "1533533"]
[BlackFideId "1195310"]
[WhiteElo "2334"]
[BlackElo "2058"]
[Result "1-0"]
[Round "02"]
[TimeControl "180+1"]
[Date "2022.03.15"]
[WhiteClock "0:00:04"]
[BlackClock "0:00:02"]

1. e4 {[%clk 0:02:59]}  c5 {[%clk 0:02:53]} 2. Nf3 {[%clk 0:02:54]}  Nc6 {[%clk 0:02:51]} 3. d4 {[%clk 0:02:53]}  cxd4 {[%clk 0:02:52]} 4. Nxd4 {[%clk 0:02:54]}  e5 {[%clk 0:02:52]} 5. Ne2 {[%clk 0:02:52]}  Nf6 {[%clk 0:02:43]} 6. Nbc3 {[%clk 0:02:51]}  h6 {[%clk 0:02:41]} 7. Ng3 {[%clk 0:02:47]}  Bb4 {[%clk 0:02:39]} 8. Bd3 {[%clk 0:02:42]}  d5 {[%clk 0:02:38]} 9. exd5 {[%clk 0:02:39]}  Nxd5 {[%clk 0:02:38]} 10. Bd2 {[%clk 0:02:33]}  Nxc3 {[%clk 0:02:34]} 11. bxc3 {[%clk 0:02:32]}  Be7 {[%clk 0:02:33]} 12. O-O {[%clk 0:02:28]}  O-O {[%clk 0:02:27]} 13. Qh5 {[%clk 0:02:07]}  Bg5 {[%clk 0:02:23]} 14. Bxg5 {[%clk 0:01:56]}  Qxg5 {[%clk 0:02:23]} 15. Qxg5 {[%clk 0:01:57]}  hxg5 {[%clk 0:02:24]} 16. Ne4 {[%clk 0:01:56]}  g4 {[%clk 0:02:12]} 17. Rab1 {[%clk 0:01:41]}  b6 {[%clk 0:02:08]} 18. Nd6 {[%clk 0:01:30]}  Rb8 {[%clk 0:01:30]} 19. Be4 {[%clk 0:01:07]}  Ne7 {[%clk 0:01:26]} 20. Rfe1 {[%clk 0:00:57]}  Be6 {[%clk 0:01:16]} 21. a4 {[%clk 0:00:53]}  Rfd8 {[%clk 0:01:05]} 22. Nb5 {[%clk 0:00:46]}  Rd7 {[%clk 0:01:01]} 23. Bd3 {[%clk 0:00:40]}  f6 {[%clk 0:00:57]} 24. Nd4 {[%clk 0:00:31]}  exd4 {[%clk 0:00:36]} 25. Rxe6 {[%clk 0:00:31]}  dxc3 {[%clk 0:00:36]} 26. g3 {[%clk 0:00:23]}  Kf7 {[%clk 0:00:34]} 27. Bc4 {[%clk 0:00:21]}  Kf8 {[%clk 0:00:26]} 28. Rbe1 {[%clk 0:00:14]}  Ng6 {[%clk 0:00:24]} 29. R6e3 {[%clk 0:00:07]}  Ne5 {[%clk 0:00:20]} 30. Be2 {[%clk 0:00:08]}  Rc7 {[%clk 0:00:12]} 31. Rd1 {[%clk 0:00:07]}  Re8 {[%clk 0:00:12]} 32. Kg2 {[%clk 0:00:07]}  Ree7 {[%clk 0:00:11]} 33. Rd8+ {[%clk 0:00:07]}  Re8 {[%clk 0:00:11]} 34. Rxe8+ {[%clk 0:00:05]}  Kxe8 {[%clk 0:00:11]} 35. Bxg4 {[%clk 0:00:06]}  Kf7 {[%clk 0:00:11]} 36. Be2 {[%clk 0:00:06]}  Rc5 {[%clk 0:00:11]} 37. f4 {[%clk 0:00:07]}  Nc6 {[%clk 0:00:11]} 38. Rd3 {[%clk 0:00:05]}  Ke7 {[%clk 0:00:09]} 39. Bg4 {[%clk 0:00:05]}  f5 {[%clk 0:00:07]} 40. Bd1 {[%clk 0:00:04]}  Nb4 {[%clk 0:00:07]} 41. Re3+ {[%clk 0:00:04]}  Kd6 {[%clk 0:00:07]} 42. Re8 {[%clk 0:00:04]}  Rd5 {[%clk 0:00:05]} 43. Kf2 {[%clk 0:00:04]}  Rd2+ {[%clk 0:00:05]} 44. Ke3 {[%clk 0:00:04]}  Kc5 {[%clk 0:00:05]} 45. Rc8+ {[%clk 0:00:04]}  Nc6 {[%clk 0:00:06]} 46. Bf3 {[%clk 0:00:04]}  Kb4 {[%clk 0:00:06]} 47. Rxc6 {[%clk 0:00:04]}  Rxc2 {[%clk 0:00:06]} 48. h3 {[%clk 0:00:02]}  Rh2 {[%clk 0:00:04]} 49. g4 {[%clk 0:00:02]}  fxg4 {[%clk 0:00:04]} 50. hxg4 {[%clk 0:00:03]}  Kxa4 {[%clk 0:00:04]} 51. f5 {[%clk 0:00:03]}  Kb3 {[%clk 0:00:04]} 52. g5 {[%clk 0:00:03]}  c2 {[%clk 0:00:05]} 53. Be4 {[%clk 0:00:03]}  Rh3+ {[%clk 0:00:04]} 54. Kf4 {[%clk 0:00:04]}  Rh2 {[%clk 0:00:02]} 55. f6 {[%clk 0:00:03]}  gxf6 {[%clk 0:00:03]} 56. gxf6 {[%clk 0:00:04]}  Rf2+ {[%clk 0:00:04]} 57. Ke5 {[%clk 0:00:04]}  a5 {[%clk 0:00:04]} 58. Rxc2 {[%clk 0:00:04]}  Rf1 {[%clk 0:00:02]} 59. Rc6 {[%clk 0:00:03]}  b5 {[%clk 0:00:01]} 60. f7 {[%clk 0:00:04]}  b4 {[%clk 0:00:02]} 61. Rf6 {[%clk 0:00:04]} 1-0


[Site "https://www.chess.com"]

[Event "Titled Tuesday Blitz March 15 Late 2022"]
[White "Albuquerque Junior,Wellington S."]
[Black "Selbes, Tarik"]
[WhiteFideId "2151480"]
[BlackFideId "6302513"]
[WhiteElo "2042"]
[BlackElo "2290"]
[Result "1-0"]
[Round "02"]
[TimeControl "180+1"]
[Date "2022.03.16"]
[WhiteClock "0:00:29"]
[BlackClock "0:00:18"]

1. c4 {[%clk 0:03:00]}  Nf6 {[%clk 0:02:55]} 2. g3 {[%clk 0:03:00]}  g6 {[%clk 0:02:55]} 3. Bg2 {[%clk 0:03:00]}  Bg7 {[%clk 0:02:56]} 4. Nc3 {[%clk 0:03:01]}  O-O {[%clk 0:02:56]} 5. e4 {[%clk 0:03:01]}  d6 {[%clk 0:02:57]} 6. d3 {[%clk 0:03:01]}  Nc6 {[%clk 0:02:58]} 7. Nge2 {[%clk 0:03:01]}  h6 {[%clk 0:02:58]} 8. O-O {[%clk 0:03:01]}  e5 {[%clk 0:02:59]} 9. h3 {[%clk 0:03:01]}  Be6 {[%clk 0:02:58]} 10. Be3 {[%clk 0:03:01]}  Qd7 {[%clk 0:02:58]} 11. Kh2 {[%clk 0:03:01]}  Nh5 {[%clk 0:02:55]} 12. Qd2 {[%clk 0:02:48]}  f5 {[%clk 0:02:48]} 13. Bxh6 {[%clk 0:02:40]}  f4 {[%clk 0:02:48]} 14. Bxg7 {[%clk 0:02:40]}  Kxg7 {[%clk 0:02:49]} 15. Ng1 {[%clk 0:02:34]}  Nd4 {[%clk 0:02:39]} 16. Nce2 {[%clk 0:02:12]}  Nxe2 {[%clk 0:02:31]} 17. Qxe2 {[%clk 0:02:13]}  Rh8 {[%clk 0:02:30]} 18. g4 {[%clk 0:01:54]}  f3 {[%clk 0:02:02]} 19. Qxf3 {[%clk 0:01:46]}  Raf8 {[%clk 0:02:00]} 20. Qd1 {[%clk 0:01:37]}  Nf4 {[%clk 0:01:44]} 21. f3 {[%clk 0:01:37]}  Rh6 {[%clk 0:01:30]} 22. Ne2 {[%clk 0:01:29]}  Qf7 {[%clk 0:01:24]} 23. Qd2 {[%clk 0:01:21]}  Nxe2 {[%clk 0:01:06]} 24. Qxe2 {[%clk 0:01:22]}  Qf4+ {[%clk 0:01:06]} 25. Kg1 {[%clk 0:01:22]}  Rfh8 {[%clk 0:01:07]} 26. Rae1 {[%clk 0:01:18]}  Rxh3 {[%clk 0:00:57]} 27. Bxh3 {[%clk 0:01:14]}  Rxh3 {[%clk 0:00:58]} 28. Rf2 {[%clk 0:01:14]}  Rg3+ {[%clk 0:00:39]} 29. Rg2 {[%clk 0:00:59]}  Rxf3 {[%clk 0:00:32]} 30. Rf1 {[%clk 0:00:59]}  Bxg4 {[%clk 0:00:24]} 31. Rff2 {[%clk 0:00:36]}  Rxf2 {[%clk 0:00:22]} 32. Qxf2 {[%clk 0:00:36]}  Qc1+ {[%clk 0:00:20]} 33. Kh2 {[%clk 0:00:37]}  Qh6+ {[%clk 0:00:19]} 34. Kg1 {[%clk 0:00:37]}  Bh3 {[%clk 0:00:19]} 35. Rg3 {[%clk 0:00:37]}  Qc1+ {[%clk 0:00:19]} 36. Kh2 {[%clk 0:00:37]}  Be6 {[%clk 0:00:19]} 37. Qg2 {[%clk 0:00:36]}  Qh6+ {[%clk 0:00:19]} 38. Kg1 {[%clk 0:00:36]}  Bf7 {[%clk 0:00:19]} 39. Rh3 {[%clk 0:00:34]}  Qc1+ {[%clk 0:00:20]} 40. Kh2 {[%clk 0:00:34]}  Qd1 {[%clk 0:00:19]} 41. b3 {[%clk 0:00:33]}  Qc1 {[%clk 0:00:19]} 42. Qf2 {[%clk 0:00:31]}  Qg5 {[%clk 0:00:18]} 43. Qh4 {[%clk 0:00:30]}  Qd2+ {[%clk 0:00:18]} 44. Kg1 {[%clk 0:00:30]}  Qd1+ {[%clk 0:00:18]} 45. Kh2 {[%clk 0:00:30]}  Qd2+ {[%clk 0:00:18]} 46. Kg1 {[%clk 0:00:30]}  Qd1+ {[%clk 0:00:18]} 47. Kh2 {[%clk 0:00:28]}  Qe2+ {[%clk 0:00:19]} 48. Kg1 {[%clk 0:00:28]}  Be6 {[%clk 0:00:18]} 49. Qh8+ {[%clk 0:00:28]}  Kf7 {[%clk 0:00:18]} 50. Rh7# {[%clk 0:00:29]} 1-0


[Site "https://www.chess.com"]

[Event "Titled Tuesday Blitz March 15 Late 2022"]
[White "Al-Tarboush, Ward"]
[Black "Holt, Conrad"]
[WhiteFideId "7601450"]
[BlackFideId "2034387"]
[WhiteElo "2276"]
[BlackElo "2586"]
[Result "0-1"]
[Round "02"]
[TimeControl "180+1"]
[Date "2022.03.16"]
[WhiteClock "0:00:01"]
[BlackClock "0:00:19"]

1. e4 {[%clk 0:02:56]}  e6 {[%clk 0:02:58]} 2. d4 {[%clk 0:02:55]}  d5 {[%clk 0:02:57]} 3. exd5 {[%clk 0:02:55]}  exd5 {[%clk 0:02:58]} 4. Bd3 {[%clk 0:02:52]}  Nf6 {[%clk 0:02:47]} 5. Bg5 {[%clk 0:02:51]}  Be7 {[%clk 0:02:46]} 6. Ne2 {[%clk 0:02:47]}  Nbd7 {[%clk 0:02:41]} 7. Nd2 {[%clk 0:02:45]}  Nf8 {[%clk 0:02:38]} 8. c3 {[%clk 0:02:41]}  Ng6 {[%clk 0:02:32]} 9. Qc2 {[%clk 0:02:38]}  Qd6 {[%clk 0:02:27]} 10. h4 {[%clk 0:02:34]}  h6 {[%clk 0:02:26]} 11. Be3 {[%clk 0:02:30]}  Ng4 {[%clk 0:02:27]} 12. O-O-O {[%clk 0:02:04]}  Nxe3 {[%clk 0:02:21]} 13. fxe3 {[%clk 0:02:05]}  Nxh4 {[%clk 0:02:20]} 14. Nf4 {[%clk 0:01:10]}  Bg4 {[%clk 0:02:18]} 15. Rde1 {[%clk 0:01:05]}  g5 {[%clk 0:02:17]} 16. g3 {[%clk 0:00:50]}  Nf3 {[%clk 0:01:54]} 17. Nxf3 {[%clk 0:00:45]}  Bxf3 {[%clk 0:01:55]} 18. Rhf1 {[%clk 0:00:45]}  Bg4 {[%clk 0:01:47]} 19. Be2 {[%clk 0:00:40]}  Bxe2 {[%clk 0:01:41]} 20. Nxe2 {[%clk 0:00:41]}  Qe6 {[%clk 0:01:39]} 21. Qf5 {[%clk 0:00:25]}  Qxe3+ {[%clk 0:01:19]} 22. Kd1 {[%clk 0:00:25]}  Qe6 {[%clk 0:01:18]} 23. Ng1 {[%clk 0:00:18]}  Qxf5 {[%clk 0:01:17]} 24. Rxf5 {[%clk 0:00:19]}  Rd8 {[%clk 0:01:13]} 25. Nf3 {[%clk 0:00:17]}  Rd6 {[%clk 0:01:02]} 26. g4 {[%clk 0:00:08]}  f6 {[%clk 0:00:56]} 27. b3 {[%clk 0:00:07]}  Kf7 {[%clk 0:00:56]} 28. c4 {[%clk 0:00:07]}  Rhd8 {[%clk 0:00:55]} 29. c5 {[%clk 0:00:07]}  Re6 {[%clk 0:00:54]} 30. Ne5+ {[%clk 0:00:08]}  Kg7 {[%clk 0:00:53]} 31. Nd3 {[%clk 0:00:07]}  Re4 {[%clk 0:00:52]} 32. Kc2 {[%clk 0:00:03]}  Kg6 {[%clk 0:00:48]} 33. Rf3 {[%clk 0:00:02]}  Rxe1 {[%clk 0:00:47]} 34. Nxe1 {[%clk 0:00:01]}  Rh8 {[%clk 0:00:46]} 35. Nd3 {[%clk 0:00:01]}  h5 {[%clk 0:00:46]} 36. gxh5+ {[%clk 0:00:02]}  Rxh5 {[%clk 0:00:46]} 37. Re3 {[%clk 0:00:03]}  Kf7 {[%clk 0:00:45]} 38. b4 {[%clk 0:00:03]}  Rh4 {[%clk 0:00:39]} 39. Kc3 {[%clk 0:00:03]}  c6 {[%clk 0:00:36]} 40. a4 {[%clk 0:00:03]}  Bd8 {[%clk 0:00:36]} 41. b5 {[%clk 0:00:03]}  Ba5+ {[%clk 0:00:36]} 42. Kb3 {[%clk 0:00:04]}  Rxd4 {[%clk 0:00:36]} 43. Rf3 {[%clk 0:00:04]}  Kg6 {[%clk 0:00:35]} 44. Re3 {[%clk 0:00:04]}  Re4 {[%clk 0:00:35]} 45. Rf3 {[%clk 0:00:03]}  f5 {[%clk 0:00:35]} 46. Nf2 {[%clk 0:00:03]}  Rb4+ {[%clk 0:00:33]} 47. Ka3 {[%clk 0:00:03]}  cxb5 {[%clk 0:00:34]} 48. axb5 {[%clk 0:00:01]}  Rxb5 {[%clk 0:00:34]} 49. Nd3 {[%clk 0:00:02]}  f4 {[%clk 0:00:32]} 50. Ne5+ {[%clk 0:00:02]}  Kf5 {[%clk 0:00:31]} 51. Nd7 {[%clk 0:00:03]}  g4 {[%clk 0:00:30]} 52. Rd3 {[%clk 0:00:02]}  g3 {[%clk 0:00:21]} 53. Ka4 {[%clk 0:00:02]}  g2 {[%clk 0:00:19]} 54. Rd1 {[%clk 0:00:02]}  a6 {[%clk 0:00:20]} 55. c6 {[%clk 0:00:01]}  bxc6 {[%clk 0:00:20]} 56. Rc1 {[%clk 0:00:01]}  f3 {[%clk 0:00:20]} 57. Rc2 {[%clk 0:00:01]}  g1=Q {[%clk 0:00:19]} 0-1


[Site "https://www.chess.com"]